bitfinex/quotes_ETHUSD_20260306
["timestamp","ask_amount","ask_price","bid_price","bid_amount"]
[1772794501271,0.48905614,2065.4,2064.4,1.66561362]
[1772794501573,1.70881813,2065.3,2064.7,0.46939358]
[1772794501978,0.49834024,2065.2,2064.7,0.46939358]
[1772794502392,1.70880674,2065.4,2064.7,0.46939358]
[1772794505609,1.70880674,2065.4,2064.8,1.21077101]
[1772794505780,1.2104665,2065.4,2064.9,0.46939358]
[1772794506187,0.49834024,2065.4,2064.9,0.46939358]
[1772794508541,1.70879815,2065.4,2064.9,1.68118531]
[1772794508691,0.001,2065.2,2064.9,1.68118531]
[1772794510145,0.001,2065.2,2064.9,0.47049358]
[1772794510700,0.001,2065.2,2064.9,1.68120468]
[1772794514101,0.001,2065.2,2065.0,0.46939358]
[1772794514446,0.001,2065.2,2064.9,1.2118111]
[1772794514612,0.49934024,2065.2,2064.6,0.0011]
[1772794516108,1.70991229,2065.2,2064.7,0.46939358]
[1772794516327,0.49834024,2065.1,2064.6,1.21198123]
[1772794517840,0.49834024,2065.1,2064.6,1.68137481]
[1772794518208,1.70893587,2065.1,2064.6,1.68137481]
[1772794519717,0.49834024,2065.0,2064.6,1.68137481]
[1772794520108,1.70992501,2065.2,2064.7,0.46939358]
[1772794520302,1.21158477,2065.2,2064.7,0.46939358]
[1772794520510,0.49834024,2065.1,2064.7,0.46939358]
[1772794520764,0.49834024,2065.1,2064.8,0.0011]
[1772794520937,0.001,2065.0,2064.8,0.0011]
[1772794521107,0.001,2065.0,2064.8,0.47049358]
[1772794522139,0.001,2065.0,2064.8,1.68126258]
[1772794522914,0.001,2065.0,2064.8,0.47049358]
[1772794523514,0.49934024,2065.0,2064.8,0.0011]
[1772794525843,0.001,2065.0,2064.8,0.0011]
[1772794527439,0.49834024,2065.5,2065.0,0.46939358]
[1772794527824,0.49834024,2065.5,2064.8,1.68126459]
[1772794529347,0.49834024,2065.3,2064.8,1.68126459]
[1772794530155,0.49834024,2065.3,2064.9,0.46939358]
[1772794531643,1.7088557,2065.3,2064.9,1.68009714]
[1772794532147,0.49834024,2065.3,2064.9,1.68009714]
[1772794532540,1.70881919,2065.3,2064.9,1.68009714]
[1772794532734,0.49834024,2065.3,2064.9,1.68009714]
[1772794534709,0.001,2065.1,2064.9,1.68009714]
[1772794534915,0.001,2065.1,2065.0,0.48728092]
[1772794536241,0.001,2065.1,2064.9,1.21070799]
[1772794537031,0.001,2065.1,2064.9,0.48728092]
[1772794537838,0.49834024,2065.3,2064.8,0.0011]
[1772794538044,0.49490992,2065.6,2064.9,0.49694772]
[1772794539219,1.21036068,2065.5,2065.1,0.49694772]
[1772794539419,0.49490992,2065.8,2065.1,0.49694772]
[1772794539633,1.70509483,2065.8,2065.1,0.49694772]
[1772794540228,0.49490992,2065.7,2065.1,0.49694772]
[1772794541250,1.70518862,2065.7,2065.3,0.49694772]
[1772794543157,1.70518862,2065.7,2065.3,1.70741352]
[1772794543358,1.21023221,2065.8,2065.4,0.49694772]
[1772794543568,1.70514213,2065.8,2065.4,0.49694772]
[1772794543867,4.84063375,2065.9,2065.4,0.49694772]
[1772794543868,1.21015431,2065.9,2065.4,0.49694772]
[1772794544252,1.70506423,2065.9,2065.4,0.49694772]
[1772794545138,1.70506423,2065.9,2065.4,1.70734082]
[1772794545341,0.49490992,2065.8,2065.4,1.70734082]
[1772794545782,0.49490992,2065.8,2065.4,1.70736617]
[1772794546536,0.001,2065.5,2065.4,1.70736617]
[1772794546744,0.001,2065.5,2065.4,1.707367]
[1772794547593,1.70513572,2065.8,2065.4,1.707367]
[1772794548363,1.70513572,2065.8,2065.4,0.49694772]
[1772794550574,0.49490992,2065.7,2065.4,1.21038429]
[1772794550892,0.49490992,2065.7,2065.4,1.70733201]
[1772794551497,0.49490992,2065.8,2065.4,1.70733201]
[1772794552995,1.70510802,2065.8,2065.4,1.70733201]
[1772794558205,1.70510802,2065.8,2065.5,0.49694772]
[1772794558409,1.70510802,2065.8,2065.6,0.001]
[1772794559286,1.70710802,2065.8,2065.6,0.001]
[1772794559499,1.70498992,2066.0,2065.6,0.49794772]
[1772794560175,0.49490992,2065.9,2065.6,0.001]
[1772794560778,0.49490992,2065.9,2065.4,0.001]
[1772794561010,0.49490992,2065.7,2065.4,0.001]
[1772794562403,0.47477842,2065.5,2065.4,0.001]
[1772794564413,1.6851391,2065.5,2065.4,0.001]
[1772794565285,0.47477842,2065.7,2065.4,0.001]
[1772794565493,0.47477842,2065.7,2065.4,0.48082874]
[1772794568113,1.21030209,2065.6,2065.4,0.001]
[1772794568409,1.68508051,2065.6,2065.4,0.001]
[1772794569315,0.47477842,2065.5,2065.1,0.0011]
[1772794570188,1.21041928,2065.4,2065.1,0.0011]
[1772794570413,0.47477842,2065.3,2065.1,0.0011]
[1772794572215,0.47477842,2065.1,2065.0,0.001]
[1772794572415,5.31661472,2065.4,2065.0,0.001]
[1772794572621,5.31661472,2065.4,2065.0,0.48082874]
[1772794572922,0.47477842,2065.3,2065.0,0.48082874]
[1772794573610,0.47477842,2065.3,2065.0,0.001]
[1772794574506,1.68530047,2065.3,2065.0,0.001]
[1772794575015,1.21052205,2065.3,2065.0,0.48082874]
[1772794575216,5.31661472,2065.4,2065.0,0.48082874]
[1772794575217,1.68521363,2065.4,2065.0,0.48082874]
[1772794575400,0.47477842,2065.4,2065.0,0.48082874]
[1772794575596,1.68519988,2065.4,2065.0,0.48082874]
[1772794575994,0.47477842,2065.3,2065.0,0.48082874]
[1772794576397,1.2105365,2065.2,2065.0,0.48082874]
[1772794576598,1.68530557,2065.3,2065.0,0.48082874]
[1772794577803,0.47477842,2065.3,2065.0,0.48082874]
[1772794578005,1.68526042,2065.3,2065.0,0.48082874]
[1772794578915,0.47477842,2065.3,2065.0,0.48082874]
[1772794579093,1.68525882,2065.3,2065.0,0.48082874]
[1772794579298,1.68525882,2065.3,2064.9,0.0011]
[1772794579299,0.47477842,2065.2,2064.9,0.0011]
[1772794581129,1.21059512,2065.1,2064.9,0.0011]
[1772794581434,1.68535861,2065.2,2064.9,0.0011]
[1772794581820,0.47477842,2065.1,2064.9,0.0011]
[1772794582121,1.21055414,2065.2,2064.9,0.0011]
[1772794582325,1.21055414,2065.2,2064.9,0.48092874]
[1772794582926,1.68530014,2065.3,2064.9,0.48092874]
[1772794583233,1.21059512,2065.1,2064.9,0.0011]
[1772794584621,0.47477842,2065.0,2064.8,0.0011]
[1772794585435,1.68545078,2065.0,2064.8,0.0011]
[1772794586030,1.68544725,2065.0,2064.8,0.0011]
[1772794587039,0.47477842,2064.9,2064.8,0.0011]
[1772794587737,1.6854908,2064.9,2064.8,0.0011]
[1772794589245,1.21071238,2064.9,2064.8,0.0011]
[1772794590428,1.6854908,2064.9,2064.8,0.0011]
[1772794590611,0.47477842,2064.8,2064.6,0.0011]
[1772794590807,1.21071238,2064.9,2064.6,0.48092874]
[1772794590808,1.6854908,2064.9,2064.6,0.48092874]
[1772794591207,0.47477842,2064.9,2064.6,0.48092874]
[1772794591415,1.21066166,2065.0,2064.6,0.48092874]
[1772794591618,3.18241959,2065.1,2064.7,0.47161525]
[1772794593228,3.18241959,2065.1,2064.8,0.49974387]
[1772794593229,1.97177842,2065.1,2064.8,0.49974387]
[1772794593533,1.68541482,2065.1,2064.8,0.49974387]
[1772794593838,1.68541482,2065.1,2064.6,1.21196415]
[1772794593839,1.70936606,2065.1,2064.6,0.50084387]
[1772794594133,0.49872966,2065.0,2064.6,0.50084387]
[1772794594335,0.49872966,2065.0,2064.6,0.0011]
[1772794595140,0.49872966,2065.0,2064.6,0.50084387]
[1772794595436,1.2106364,2065.1,2064.7,0.49974387]
[1772794595634,1.70936606,2065.1,2064.7,0.49974387]
[1772794595865,1.70934212,2065.1,2064.9,0.0011]
[1772794596145,1.71034212,2065.1,2064.9,0.0011]
[1772794596517,0.49872966,2065.0,2064.6,0.0011]
[1772794598544,1.70944204,2064.9,2064.6,0.0011]
[1772794598746,0.49872966,2064.8,2064.6,0.0011]
[1772794600753,1.21082966,2064.7,2064.6,0.0011]
[1772794602020,1.70954912,2064.8,2064.6,0.0011]
[1772794602724,1.21077101,2064.8,2064.6,0.50084387]
[1772794602923,0.49872966,2064.7,2064.5,0.0011]
[1772794603732,1.70950067,2064.8,2064.5,0.0011]
[1772794605162,1.70953247,2064.8,2064.5,0.50084387]
[1772794605534,1.70951354,2064.8,2064.5,0.50084387]
[1772794606331,1.21078388,2064.8,2064.5,0.50084387]
[1772794606937,1.70947282,2064.9,2064.5,0.50084387]
[1772794607128,0.49872966,2064.8,2064.5,0.0011]
[1772794607551,0.49872966,2064.8,2064.5,0.50084387]
[1772794607846,0.49872966,2064.8,2064.7,0.0011]
[1772794608851,1.70950067,2064.8,2064.7,0.0011]
[1772794610759,1.21077101,2064.8,2064.7,0.0011]
[1772794611053,1.71048497,2064.9,2064.7,0.0011]
[1772794611457,0.49972966,2064.9,2064.7,0.0011]
[1772794611858,1.71044446,2064.9,2064.7,0.0011]
[1772794612071,0.001,2064.9,2064.7,0.0011]
[1772794612269,1.71044228,2064.9,2064.7,0.0011]
[1772794613847,1.21171894,2064.9,2064.7,0.0011]
[1772794614036,1.21171894,2064.9,2064.7,0.50084387]
[1772794614364,8.44773769,2065.0,2064.9,0.49974387]
[1772794614531,5.74473574,2065.0,2064.9,0.49974387]
[1772794614744,3.04173379,2065.0,2064.9,0.49974387]
[1772794614967,2.5011334,2065.0,2064.7,0.0011]
[1772794615173,2.5011334,2065.0,2064.8,0.49974387]
[1772794615466,1.96476271,2065.0,2064.9,0.49974387]
[1772794616054,0.001,2065.1,2065.0,0.49974387]
[1772794616645,0.002,2065.5,2065.1,0.49974387]
[1772794619377,0.002,2065.5,2065.3,0.49974387]
[1772794620449,0.50072966,2065.5,2064.7,1.3891]
[1772794620675,0.49872966,2065.4,2064.7,1.7116679]
[1772794620858,0.49872966,2065.4,2064.8,0.49974387]
[1772794621056,0.002,2065.5,2064.8,0.49974387]
[1772794621262,0.002,2065.5,2065.0,0.49974387]
[1772794621646,0.48345092,2065.5,2065.0,0.49974387]
[1772794621878,0.48345092,2065.5,2064.7,1.2119022]
[1772794622079,0.48345092,2065.5,2064.8,0.48891093]
[1772794623186,0.48145092,2065.3,2064.8,1.69963654]
[1772794623390,0.48145092,2065.3,2064.8,0.48891093]
[1772794623588,0.48145092,2065.3,2064.8,1.69968117]
[1772794624269,0.48145092,2065.3,2064.9,0.48891093]
[1772794625169,0.48145092,2065.3,2064.8,0.08729753]
[1772794625585,0.48145092,2065.1,2064.8,0.08729753]
[1772794625777,0.48145092,2065.1,2064.8,1.29805929]
[1772794625975,0.48145092,2065.1,2064.8,0.08729753]
[1772794626360,1.69198742,2065.2,2064.8,1.29806301]
[1772794626561,1.69198742,2065.2,2064.9,0.08729753]
[1772794626762,0.48145092,2065.2,2064.9,0.08729753]
[1772794628189,1.21059512,2065.1,2064.9,0.08729753]
[1772794628594,1.69203447,2065.2,2064.9,0.08729753]
[1772794628901,1.69199685,2065.2,2064.9,0.08729753]
[1772794629798,0.48145092,2065.3,2064.9,0.08729753]
[1772794629971,0.48145092,2065.3,2065.0,0.08729753]
[1772794630171,1.6919569,2065.3,2065.0,0.08729753]
[1772794631397,1.21042755,2065.4,2065.0,1.29791456]
[1772794631700,1.69187847,2065.4,2065.1,0.08729753]
[1772794632079,0.001,2065.3,2065.0,0.08839753]
[1772794632281,0.001,2065.3,2065.1,0.08729753]
[1772794634900,0.001,2065.3,2065.1,1.29785089]
[1772794635094,0.001,2065.3,2065.1,0.08729753]
[1772794635275,0.001,2065.3,2065.1,1.29787065]
[1772794635686,0.002,2065.5,2065.2,0.08629753]
[1772794636565,0.002,2065.5,2065.4,0.08629753]
[1772794637288,0.002,2065.7,2065.4,0.08629753]
[1772794637678,0.48345092,2066.0,2065.4,0.08629753]
[1772794638096,0.002,2066.0,2065.4,0.08629753]
[1772794638398,0.002,2066.0,2065.5,0.08629753]
[1772794638593,0.002,2066.0,2065.7,0.08629753]
[1772794639197,0.002,2066.0,2065.6,1.21030209]
[1772794639198,0.48345092,2066.0,2065.6,1.21030209]
[1772794639501,0.48345092,2066.0,2065.6,0.08629753]
[1772794639876,0.002,2066.0,2065.6,0.08629753]
[1772794640605,1.69352713,2066.0,2065.6,1.29655936]
[1772794640791,0.48145092,2065.9,2065.5,1.29665821]
[1772794641385,0.48145092,2065.9,2065.6,0.08629753]
[1772794641586,0.48145092,2065.9,2065.5,0.08629753]
[1772794642200,0.48145092,2065.9,2065.4,0.08629753]
[1772794642397,0.48145092,2065.9,2064.9,12.62562278]
[1772794642398,0.48145092,2065.9,2065.3,0.08629753]
[1772794642602,0.48145092,2065.9,2065.1,1.29685446]
[1772794642603,0.48145092,2065.7,2065.1,1.29685446]
[1772794643607,0.48145092,2065.7,2065.2,0.08629753]
[1772794643900,0.48145092,2065.7,2065.6,0.001]
[1772794644205,0.48345092,2065.7,2065.6,0.001]
[1772794644604,1.69369442,2065.7,2065.6,0.001]
[1772794645705,0.48345092,2065.7,2065.6,0.001]
[1772794645889,1.69369442,2065.7,2065.6,0.001]
[1772794647011,0.48345092,2065.7,2065.6,0.001]
[1772794647303,1.69369442,2065.7,2065.6,0.001]
[1772794647506,1.69369442,2065.7,2065.4,0.001]
[1772794647507,0.48145092,2065.6,2065.1,1.2115913]
[1772794648010,0.48145092,2065.6,2065.2,0.08729753]
[1772794648799,0.48145092,2065.6,2065.3,1.21047789]
[1772794649178,0.48145092,2065.6,2065.3,1.29777542]
[1772794650480,0.002,2065.7,2065.4,0.08729753]
[1772794651021,0.002,2065.7,2065.6,0.08729753]
[1772794651611,0.002,2066.0,2065.6,0.08729753]
[1772794651982,0.47118464,2066.0,2065.6,0.08729753]
[1772794652381,0.47118464,2066.0,2065.5,1.70301292]
[1772794652897,0.47118464,2066.0,2065.6,0.49265224]
[1772794653312,0.47118464,2066.0,2065.7,1.2102435]
[1772794653983,0.46918464,2065.9,2065.4,0.49265224]
[1772794654189,0.46918464,2065.9,2065.4,1.70307152]
[1772794654387,0.46918464,2065.9,2065.3,1.21047486]
[1772794654736,0.46918464,2065.9,2065.3,1.7031271]
[1772794655389,0.46918464,2065.7,2065.3,1.7031271]
[1772794656723,1.21017245,2065.9,2065.4,0.49265224]
[1772794656724,0.46918464,2065.9,2065.4,0.49265224]
[1772794657586,0.46918464,2065.8,2065.5,1.21136068]
[1772794657790,0.47118464,2065.8,2065.5,1.21136068]
[1772794659517,0.47118464,2065.8,2065.5,1.70401292]
[1772794660108,0.002,2065.8,2065.6,0.49265224]
[1772794661225,0.47118464,2065.8,2065.5,0.001]
[1772794661409,0.46918464,2065.7,2065.5,0.001]
[1772794663826,0.46918464,2065.6,2065.5,0.001]
[1772794665831,0.46918464,2065.7,2065.5,0.001]
[1772794666243,0.47118464,2065.8,2065.5,0.001]
[1772794668117,0.46918464,2065.5,2065.3,0.001]
[1772794668315,0.46918464,2065.7,2065.3,0.001]
[1772794668517,1.67947625,2065.7,2065.3,0.49365224]
[1772794668817,0.46918464,2065.6,2065.3,0.49365224]
[1772794670600,1.67948673,2065.6,2065.5,0.001]
[1772794673541,0.46918464,2065.5,2065.2,0.001]
[1772794679040,0.46918464,2065.3,2065.0,0.0011]
[1772794682838,0.49062953,2065.1,2065.0,0.0011]
[1772794685238,1.70122465,2065.1,2065.0,0.0011]
[1772794685637,0.49062953,2065.0,2064.7,0.0011]
[1772794685842,0.49062953,2065.0,2064.5,0.0011]
[1772794686341,0.49062953,2065.0,2064.5,1.21203004]
[1772794686529,0.49062953,2065.0,2064.5,1.66862114]
[1772794686721,0.49062953,2065.0,2064.6,0.4565911]
[1772794687125,1.21071238,2064.9,2064.6,0.4565911]
[1772794687321,1.70134191,2064.9,2064.6,0.4565911]
[1772794688048,0.49062953,2065.1,2064.7,0.4565911]
[1772794689447,0.49062953,2065.1,2064.8,0.4565911]
[1772794689616,1.70122895,2065.1,2064.8,0.4565911]
[1772794691145,0.49062953,2065.3,2064.8,0.4565911]
[1772794691318,1.2105365,2065.2,2064.8,0.4565911]
[1772794691645,0.49062953,2065.1,2064.8,0.4565911]
[1772794693245,0.49062953,2065.1,2064.6,1.66743151]
[1772794693946,0.49062953,2064.9,2064.6,0.4565911]
[1772794696143,1.21077101,2064.8,2064.6,0.4565911]
[1772794696448,1.21077101,2064.8,2064.5,0.48822377]
[1772794697623,1.68191923,2064.8,2064.5,0.0011]
[1772794699149,0.47114822,2064.7,2064.5,0.0011]
[1772794699370,0.47114822,2064.7,2064.4,0.0011]
[1772794700461,0.47114822,2064.7,2064.4,0.48822377]
[1772794700462,1.2108883,2064.6,2064.4,0.48822377]
[1772794706369,1.2108883,2064.6,2064.3,0.0011]
[1772794706370,1.2108883,2064.6,2064.3,0.48822377]
[1772794706575,1.68203652,2064.6,2064.3,0.48822377]
[1772794709346,1.2118883,2064.6,2064.3,0.48822377]
[1772794709666,1.2118883,2064.6,2064.4,0.48822377]
[1772794710170,0.002,2065.1,2064.5,0.48712377]
[1772794710171,1.68180197,2065.0,2064.5,0.48712377]
[1772794712065,1.68180197,2065.0,2064.6,0.47669399]
[1772794712673,0.48287027,2064.9,2064.6,0.47669399]
[1772794712969,0.48287027,2064.9,2064.4,0.0011]
[1772794713266,0.48287027,2064.9,2064.4,0.49548897]
[1772794713471,0.48287027,2064.9,2064.4,0.0011]
[1772794714992,0.48287027,2064.7,2064.4,0.0011]
[1772794716970,1.69375857,2064.6,2064.4,0.0011]
[1772794722881,0.48387027,2064.8,2064.4,0.49548897]
[1772794723087,0.48287027,2064.7,2064.4,0.0011]
[1772794723785,1.2108883,2064.6,2064.4,0.0011]
[1772794724250,1.69375857,2064.6,2064.4,0.0011]
[1772794725987,1.69375857,2064.6,2063.9,0.0011]
[1772794725988,0.48287027,2064.4,2063.9,0.0011]
[1772794726195,0.48287027,2064.2,2063.5,0.07735948]
[1772794726375,0.48287027,2064.0,2063.5,0.07735948]
[1772794726554,0.48287027,2063.9,2063.5,0.07735948]
[1772794726755,0.48287027,2063.9,2063.4,0.07735948]
[1772794727757,1.21135768,2063.8,2063.4,0.07735948]
[1772794728058,0.48287027,2063.7,2063.4,0.07735948]
[1772794728756,0.48287027,2063.7,2063.3,0.07735948]
[1772794729964,0.48287027,2063.5,2063.1,1.28912303]
[1772794730574,0.48287027,2063.5,2063.2,0.07735948]
[1772794730771,0.48287027,2063.5,2063.1,1.21176355]
[1772794731070,0.48287027,2063.5,2063.0,1.28915071]
[1772794731276,0.48287027,2063.5,2063.1,0.07735948]
[1772794732382,1.69433078,2063.7,2063.3,0.07735948]
[1772794733258,0.001,2063.7,2063.3,0.07735948]
[1772794733586,0.48387027,2063.7,2063.2,1.21280996]
[1772794733787,0.48387027,2063.7,2063.2,1.29016944]
[1772794734088,0.48387027,2063.7,2063.3,0.07735948]
[1772794735486,0.48387027,2063.7,2063.4,0.07735948]
[1772794735965,0.001,2063.7,2063.4,0.07735948]
[1772794737691,0.001,2063.7,2063.4,1.2889235]
[1772794737880,0.001,2063.7,2063.5,0.07735948]
[1772794739794,0.48387027,2063.7,2063.3,1.21161625]
[1772794739965,0.48387027,2063.7,2063.3,0.07735948]
[1772794740490,0.48387027,2063.7,2063.2,0.0011]
[1772794740668,0.48287027,2063.6,2063.2,0.07845948]
[1772794741692,0.001,2063.7,2063.2,0.07845948]
[1772794742104,0.48296286,2063.7,2063.3,1.28901071]
[1772794745109,1.6943864,2063.7,2063.3,1.28901071]
[1772794745600,0.48196286,2063.6,2063.3,1.21165123]
[1772794745895,0.48196286,2063.6,2063.2,1.29013661]
[1772794746363,0.48196286,2063.6,2063.5,0.0011]
[1772794747795,0.001,2063.7,2063.5,0.07845948]
[1772794753428,0.001,2063.7,2063.5,1.28999111]
[1772794755420,0.48296286,2063.7,2063.5,0.0011]
[1772794755726,0.001,2063.7,2063.5,0.0011]
[1772794756304,1.21109271,2064.3,2063.6,0.07635948]
[1772794756532,0.48196286,2064.2,2063.6,0.07635948]
[1772794756824,1.69301078,2064.4,2063.6,0.07635948]
[1772794757001,0.48196286,2064.3,2063.6,0.07635948]
[1772794757396,0.48196286,2064.3,2063.8,0.07635948]
[1772794758125,0.48196286,2064.2,2063.8,0.07635948]
[1772794758741,0.48296286,2064.1,2063.7,0.46967699]
[1772794759033,0.48196286,2064.0,2063.3,1.68242223]
[1772794759400,1.21129899,2063.9,2063.3,1.68242223]
[1772794759596,0.48196286,2063.8,2063.3,0.47077699]
[1772794759929,0.48196286,2063.8,2063.3,1.68241306]
[1772794760106,0.48196286,2063.8,2063.3,0.47077699]
[1772794760301,0.48196286,2063.8,2063.3,1.68241595]
[1772794760728,0.48196286,2063.8,2063.3,0.0011]
[1772794761057,0.48196286,2063.8,2063.3,1.2127278]
[1772794761205,0.48196286,2063.8,2063.3,1.68240479]
[1772794761530,1.6933717,2063.8,2063.3,1.68240479]
[1772794761711,0.48196286,2063.7,2063.3,1.68240479]
[1772794763028,0.48196286,2063.7,2063.4,0.46967699]
[1772794763607,1.69340988,2063.7,2063.3,0.47077699]
[1772794763929,0.48196286,2063.7,2063.3,0.47077699]
[1772794764225,1.69338251,2063.7,2063.3,0.47077699]
[1772794764424,0.48196286,2063.7,2063.3,0.47077699]
[1772794764928,1.69337942,2063.7,2063.3,0.47077699]
[1772794765528,1.69337942,2063.7,2063.3,1.68238467]
[1772794766127,0.48196286,2063.7,2063.3,1.68238467]
[1772794767717,1.69336225,2063.8,2063.4,0.46967699]
[1772794768844,1.69330185,2063.9,2063.4,0.46967699]
[1772794769206,0.48196286,2063.8,2063.4,0.46967699]
[1772794770117,0.48196286,2063.8,2063.6,0.0011]
[1772794770813,1.69332478,2063.8,2063.6,0.0011]
[1772794771330,0.48196286,2063.7,2063.6,0.0011]
[1772794772829,1.69337924,2063.7,2063.6,0.0011]
[1772794773531,0.46234835,2063.6,2063.4,0.0011]
[1772794774640,1.67383149,2063.6,2063.4,0.0011]
[1772794775010,0.46234835,2063.5,2063.4,0.0011]
[1772794776846,0.46234835,2063.5,2063.1,1.21282413]
[1772794776847,0.46234835,2063.4,2063.1,0.0011]
[1772794777138,0.46234835,2063.4,2062.8,0.49421277]
[1772794779147,1.67399958,2063.3,2062.9,0.49421277]
[1772794781647,1.527,2063.5,2062.8,4.84754471]
[1772794781848,1.527,2063.5,2062.9,0.49421277]
[1772794781849,0.46234835,2063.4,2062.9,0.49421277]
[1772794782145,0.46234835,2063.4,2063.1,0.0011]
[1772794783649,1.67404132,2063.3,2063.1,0.0011]
[1772794783842,2.13638967,2063.3,2063.1,0.0011]
[1772794786154,0.46234835,2063.2,2062.9,0.49531277]
[1772794787846,0.46234835,2063.4,2062.9,0.49531277]
[1772794788047,0.46234835,2063.3,2062.9,0.49531277]
[1772794789527,0.46234835,2063.2,2062.9,0.49531277]
[1772794791089,2.13645363,2063.2,2062.9,0.49531277]
[1772794792045,0.46234835,2063.1,2062.9,0.0011]
[1772794793057,1.67410528,2063.2,2062.9,0.49531277]
[1772794794631,1.67410528,2063.2,2063.1,0.0011]
[1772794798445,2.13645363,2063.2,2063.1,0.0011]
[1772794801143,0.46234835,2063.2,2063.1,0.0011]
[1772794801346,0.46234835,2063.1,2062.7,0.0011]
[1772794801954,0.48208866,2062.9,2062.7,0.0011]
[1772794802162,0.48208866,2062.9,2061.9,1.80798434]
[1772794802365,0.48208866,2062.7,2062.0,0.48998143]
[1772794802567,0.48208866,2062.5,2062.0,0.48998143]
[1772794802867,0.48208866,2062.5,2061.9,0.59554907]
[1772794803165,0.48208866,2062.3,2061.9,1.80801407]
[1772794803361,0.48208866,2062.5,2062.0,0.48998143]
[1772794804150,0.46234835,2062.4,2062.0,0.48998143]
[1772794805135,0.46234835,2062.4,2062.2,0.48998143]
[1772794805335,1.69407781,2062.8,2062.2,0.48998143]
[1772794805566,0.48208866,2062.8,2062.2,0.48998143]
[1772794806137,1.69404129,2062.8,2062.2,0.48998143]
[1772794806338,1.69404129,2062.8,2062.2,0.49108143]
[1772794807241,0.48208866,2062.7,2062.2,1.21335039]
[1772794809657,0.48208866,2062.5,2062.2,1.21335039]
[1772794809872,0.48208866,2062.5,2062.2,0.0011]
[1772794810178,0.48208866,2062.5,2062.0,0.0011]
[1772794810751,0.48208866,2062.5,2062.0,1.21351209]
[1772794811079,0.48208866,2062.5,2062.0,0.0011]
[1772794811261,0.48208866,2062.4,2062.0,0.0011]
[1772794812349,0.48208866,2062.2,2062.0,0.0011]
[1772794812547,1.2121761,2062.5,2062.0,0.49108143]
[1772794812777,4.84698954,2063.3,2062.0,0.49108143]
[1772794812778,0.001,2063.0,2062.0,0.49108143]
[1772794812977,0.001,2063.0,2062.2,0.48998143]
[1772794813385,1.21282845,2063.0,2062.2,0.48998143]
[1772794813684,0.48208866,2062.9,2062.0,0.49108143]
[1772794813986,0.001,2063.0,2062.0,0.49108143]
[1772794814173,0.001,2063.0,2062.2,0.48998143]
[1772794814380,0.001,2063.0,2062.4,0.48998143]
[1772794816276,0.001,2063.0,2062.5,1.21212121]
[1772794816581,0.48308866,2063.0,2062.5,1.70210264]
[1772794817664,0.48308866,2063.0,2062.6,0.48998143]
[1772794818586,0.48308866,2063.0,2062.7,1.21200368]
[1772794819160,0.001,2062.8,2062.7,1.21200368]
[1772794819478,0.001,2062.8,2062.6,1.70199919]
[1772794819782,0.001,2062.8,2062.3,4.84894038]
[1772794819783,0.001,2062.8,2062.4,1.70215952]
[1772794819983,0.48308866,2062.8,2062.2,0.49108143]
[1772794820156,0.48308866,2062.8,2062.2,0.0011]
[1772794820352,0.48308866,2062.8,2062.2,1.2133935]
[1772794820581,0.48308866,2062.8,2062.3,0.48998143]
[1772794821683,0.001,2063.0,2062.4,0.48998143]
[1772794822667,0.001,2063.0,2062.6,0.48998143]
[1772794824880,0.001,2063.0,2062.7,1.21200368]
[1772794825185,0.001,2063.0,2062.7,1.70198511]
[1772794827990,0.4188813,2063.1,2062.7,1.70198511]
[1772794828283,1.69466156,2063.5,2062.8,0.48998143]
[1772794828473,1.2125729,2063.5,2062.8,0.48998143]
[1772794828679,0.48208866,2063.4,2062.8,0.48998143]
[1772794830292,0.48208866,2063.3,2062.9,1.7018676]
[1772794830796,0.48208866,2063.3,2063.0,0.48998143]
[1772794831096,0.001,2063.2,2063.0,0.48998143]
[1772794832186,0.48684878,2063.2,2062.7,1.70720453]
[1772794832795,0.48684878,2063.2,2062.8,0.49522032]
[1772794834471,0.48584878,2063.1,2062.6,1.70723983]
[1772794838302,0.48584878,2063.1,2062.7,0.49522032]
[1772794839199,0.48584878,2063.0,2062.7,0.49522032]
[1772794840005,0.48100135,2063.0,2062.7,0.49522032]
[1772794842007,0.48584878,2062.9,2062.6,0.49522032]
[1772794842569,0.48584878,2062.9,2062.4,0.0011]
[1772794842908,0.48584878,2062.9,2062.1,0.0011]
[1772794842909,0.48584878,2062.6,2062.1,0.0011]
[1772794843291,0.48584878,2062.6,2061.9,1.70879396]
[1772794843292,0.48584878,2062.6,2061.9,0.0011]
[1772794843671,0.48584878,2062.6,2062.0,0.49522032]
[1772794843866,1.69794525,2062.6,2062.1,1.70757665]
[1772794844077,1.69794525,2062.6,2062.2,0.49522032]
[1772794844407,1.69781435,2062.8,2062.4,0.49632032]
[1772794844778,0.48584878,2062.7,2062.4,0.0011]
[1772794845504,0.48584878,2062.7,2062.0,1.70760849]
[1772794847813,0.48584878,2062.5,2062.0,0.49522032]
[1772794848029,0.48584878,2062.5,2061.2,0.30582199]
[1772794848030,0.48584878,2062.4,2061.2,0.30582199]
[1772794848226,0.48584878,2062.4,2061.1,2.80999263]
[1772794848227,0.5,2062.0,2061.1,1.22910806]
[1772794848395,1.21206244,2062.6,2060.7,2.41709721]
[1772794848396,0.5,2061.8,2060.7,3.63023106]
[1772794848943,0.5,2061.7,2060.7,3.63023106]
[1772794849389,0.5,2061.7,2060.7,1.21313385]
[1772794849588,0.5,2061.3,2059.8,1.21371006]
[1772794849793,0.5,2061.3,2059.7,0.0953219]
[1772794849794,0.5,2061.1,2059.7,1.30904381]
[1772794850007,0.5,2061.0,2059.7,1.30904381]
[1772794850691,0.5,2061.5,2059.8,0.065536]
[1772794851191,0.5,2061.7,2059.8,0.065536]
[1772794851390,0.5,2061.7,2059.9,0.14948499]
[1772794851789,0.64133386,2061.8,2060.3,1.27895152]
[1772794851990,0.64133386,2061.8,2060.4,1.373]
[1772794852193,0.5,2061.7,2060.4,1.373]
[1772794852405,0.64133386,2061.8,2060.4,1.373]
[1772794852693,0.5,2061.7,2060.4,1.373]
[1772794852910,0.5,2061.7,2060.5,0.065536]
[1772794853924,0.5,2061.7,2060.6,1.21323886]
[1772794856013,0.64133386,2061.8,2060.6,1.21323886]
[1772794856196,0.64133386,2061.8,2060.7,0.065536]
[1772794856723,0.5,2062.4,2060.8,0.14948499]
[1772794857622,0.5,2062.4,2060.7,0.065536]
[1772794857997,0.5,2062.3,2060.9,0.065536]
[1772794859022,0.5,2062.3,2060.9,1.452536]
[1772794860329,0.5,2062.2,2061.1,0.065536]
[1772794860809,0.5,2062.2,2061.0,1.21300339]
[1772794862400,0.5,2062.0,2061.0,1.21300339]